[Event "*** Titled Tuesday Blitz"]
[Site "Chess.com"]
[Date "2020.05.19"]
[Round "10"]
[White "cassoulet"]
[Black "Herracek"]
[Result "0-1"]
[WhiteElo "2625"]
[BlackElo "2557"]
[TimeControl "180+1"]
[EndTime "13:57:44 PDT"]
[Termination "Herracek won on time"]

1. e4 {[%clk 0:03:00.9]} 1... c5 {[%clk 0:02:59.6]} 2. Nf3 {[%clk 0:03:00.7]}
2... Nc6 {[%clk 0:03:00]} 3. Bb5 {[%clk 0:03:00.6]} 3... g6 {[%clk 0:03:00.4]}
4. O-O {[%clk 0:03:00.3]} 4... Bg7 {[%clk 0:03:00.9]} 5. Re1 {[%clk 0:03:01]}
5... e5 {[%clk 0:02:59.8]} 6. c3 {[%clk 0:03:00.5]} 6... Nge7 {[%clk 0:03:00]}
7. d3 {[%clk 0:02:51.3]} 7... O-O {[%clk 0:02:58.6]} 8. h3 {[%clk 0:02:50.1]}
8... a6 {[%clk 0:02:58.6]} 9. Ba4 {[%clk 0:02:48.3]} 9... b5 {[%clk 0:02:58.9]}
10. Bb3 {[%clk 0:02:47.2]} 10... d5 {[%clk 0:02:59.8]} 11. Bg5 {[%clk
0:02:39.8]} 11... f6 {[%clk 0:02:58.1]} 12. Bh4 {[%clk 0:02:38.4]} 12... Na5
{[%clk 0:02:54.9]} 13. Bc2 {[%clk 0:02:37.2]} 13... d4 {[%clk 0:02:52.9]} 14. a4
{[%clk 0:02:34.6]} 14... b4 {[%clk 0:02:49.5]} 15. cxd4 {[%clk 0:02:31.2]} 15...
cxd4 {[%clk 0:02:45.2]} 16. Nbd2 {[%clk 0:02:29.1]} 16... Be6 {[%clk 0:02:43]}
17. Nb3 {[%clk 0:02:29.2]} 17... Nec6 {[%clk 0:02:37.9]} 18. Nxa5 {[%clk
0:02:21.1]} 18... Nxa5 {[%clk 0:02:37.4]} 19. Nd2 {[%clk 0:02:15.9]} 19... Rc8
{[%clk 0:02:37.4]} 20. Bb3 {[%clk 0:02:12.5]} 20... Nxb3 {[%clk 0:02:35]} 21.
Nxb3 {[%clk 0:02:13.4]} 21... g5 {[%clk 0:02:27.7]} 22. Bg3 {[%clk 0:02:08]}
22... Qb6 {[%clk 0:02:17.6]} 23. h4 {[%clk 0:01:58.6]} 23... h6 {[%clk
0:02:16.8]} 24. Nd2 {[%clk 0:01:39.3]} 24... Rc6 {[%clk 0:02:11.4]} 25. b3
{[%clk 0:01:27.1]} 25... Rc3 {[%clk 0:02:11]} 26. Nc4 {[%clk 0:01:27.4]} 26...
Qc6 {[%clk 0:02:02.8]} 27. Rc1 {[%clk 0:01:20.5]} 27... g4 {[%clk 0:02:00.6]}
28. f4 {[%clk 0:01:10.8]} 28... Bxc4 {[%clk 0:01:48.8]} 29. bxc4 {[%clk
0:00:55]} 29... Rxc1 {[%clk 0:01:46.7]} 30. Qxc1 {[%clk 0:00:54.6]} 30... Qxa4
{[%clk 0:01:47]} 31. h5 {[%clk 0:00:48]} 31... Qe8 {[%clk 0:01:46.5]} 32. c5
{[%clk 0:00:45]} 32... a5 {[%clk 0:01:43.7]} 33. Qc4+ {[%clk 0:00:40.9]} 33...
Qf7 {[%clk 0:01:42.2]} 34. Qb5 {[%clk 0:00:38.7]} 34... Ra8 {[%clk 0:01:34.5]}
35. fxe5 {[%clk 0:00:33]} 35... fxe5 {[%clk 0:01:34.1]} 36. Rf1 {[%clk
0:00:33.5]} 36... Qxh5 {[%clk 0:00:59.4]} 37. c6 {[%clk 0:00:32.7]} 37... Qe8
{[%clk 0:00:52.8]} 38. Qd5+ {[%clk 0:00:28.2]} 38... Kh8 {[%clk 0:00:50.4]} 39.
c7 {[%clk 0:00:23.7]} 39... b3 {[%clk 0:00:35.4]} 40. Qxb3 {[%clk 0:00:20.6]}
40... a4 {[%clk 0:00:35.8]} 41. Qc4 {[%clk 0:00:15.8]} 41... a3 {[%clk
0:00:35.8]} 42. Rc1 {[%clk 0:00:15.7]} 42... a2 {[%clk 0:00:34.3]} 43. Qxa2
{[%clk 0:00:09.9]} 43... Rxa2 {[%clk 0:00:31]} 44. c8=Q {[%clk 0:00:10.1]} 44...
Qxc8 {[%clk 0:00:28.8]} 45. Rxc8+ {[%clk 0:00:11]} 45... Kh7 {[%clk 0:00:29.4]}
46. Rc7 {[%clk 0:00:10.5]} 46... Ra5 {[%clk 0:00:27.6]} 47. Kh2 {[%clk
0:00:08.7]} 47... Kg6 {[%clk 0:00:27.5]} 48. Bh4 {[%clk 0:00:08.9]} 48... Ra6
{[%clk 0:00:25.2]} 49. Kg3 {[%clk 0:00:06.9]} 49... h5 {[%clk 0:00:25.4]} 50.
Be7 {[%clk 0:00:06.1]} 50... Bh6 {[%clk 0:00:25.6]} 51. Kh4 {[%clk 0:00:04.8]}
51... Be3 {[%clk 0:00:23.2]} 52. Kg3 {[%clk 0:00:03.2]} 52... Bf4+ {[%clk
0:00:23]} 53. Kh4 {[%clk 0:00:03.5]} 53... Re6 {[%clk 0:00:22.6]} 54. Bd8 {[%clk
0:00:03.3]} 54... Be3 {[%clk 0:00:21.1]} 55. Kg3 {[%clk 0:00:03]} 55... Bd2
{[%clk 0:00:21.5]} 56. Kh4 {[%clk 0:00:02.9]} 56... Ba5 {[%clk 0:00:21.7]} 57.
Rd7 {[%clk 0:00:02.7]} 57... Be1+ {[%clk 0:00:21.2]} 58. g3 {[%clk 0:00:02.2]}
58... Rc6 {[%clk 0:00:20.8]} 59. Re7 {[%clk 0:00:01.7]} 59... Rc2 {[%clk
0:00:19.3]} 0-1

[Event "*** Titled Tuesday Blitz"]
[Site "Chess.com"]
[Date "2020.05.19"]
[Round "10"]
[White "MFBerna"]
[Black "GregShahade"]
[Result "1/2-1/2"]
[WhiteElo "2349"]
[BlackElo "2505"]
[TimeControl "180+1"]
[EndTime "13:57:44 PDT"]
[Termination "Game drawn by repetition"]

1. d4 {[%clk 0:03:00.9]} 1... Nf6 {[%clk 0:02:59.7]} 2. Nf3 {[%clk 0:03:01.2]}
2... g6 {[%clk 0:02:59.9]} 3. Nc3 {[%clk 0:03:00.5]} 3... d5 {[%clk 0:02:56.6]}
4. g3 {[%clk 0:03:00.1]} 4... Bg7 {[%clk 0:02:56.4]} 5. Bg2 {[%clk 0:03:00.5]}
5... O-O {[%clk 0:02:56.3]} 6. O-O {[%clk 0:03:00.9]} 6... c6 {[%clk 0:02:49.7]}
7. Bf4 {[%clk 0:02:59.9]} 7... Bf5 {[%clk 0:02:49.5]} 8. Ne5 {[%clk 0:02:58.2]}
8... Nbd7 {[%clk 0:02:46.6]} 9. Qd2 {[%clk 0:02:53.2]} 9... Nxe5 {[%clk
0:02:44]} 10. Bxe5 {[%clk 0:02:50.5]} 10... Nd7 {[%clk 0:02:23.2]} 11. Bxg7
{[%clk 0:02:49.8]} 11... Kxg7 {[%clk 0:02:23.8]} 12. e4 {[%clk 0:02:50.4]} 12...
dxe4 {[%clk 0:02:22.1]} 13. Nxe4 {[%clk 0:02:51.3]} 13... Qb6 {[%clk 0:02:06.1]}
14. c3 {[%clk 0:02:48.8]} 14... Bxe4 {[%clk 0:02:02.5]} 15. Bxe4 {[%clk
0:02:48.6]} 15... Nf6 {[%clk 0:02:03.2]} 16. Bg2 {[%clk 0:02:48.8]} 16... Rad8
{[%clk 0:02:02.1]} 17. Qe2 {[%clk 0:02:47.5]} 17... Rfe8 {[%clk 0:02:01.2]} 18.
Rfe1 {[%clk 0:02:47.3]} 18... Nd5 {[%clk 0:01:57.6]} 19. Qc2 {[%clk 0:02:43.4]}
19... Qc7 {[%clk 0:01:54.2]} 20. Re5 {[%clk 0:02:41.2]} 20... e6 {[%clk
0:01:52.1]} 21. Rae1 {[%clk 0:02:41.3]} 21... Nf6 {[%clk 0:01:43.5]} 22. Qe2
{[%clk 0:02:35.5]} 22... Qb6 {[%clk 0:01:35]} 23. b3 {[%clk 0:02:32.6]} 23... a5
{[%clk 0:01:30.8]} 24. Qf3 {[%clk 0:02:20.9]} 24... a4 {[%clk 0:01:22.9]} 25. b4
{[%clk 0:02:21.4]} 25... Nd5 {[%clk 0:01:21]} 26. a3 {[%clk 0:02:12.2]} 26...
Qc7 {[%clk 0:01:21]} 27. h4 {[%clk 0:02:06.2]} 27... h5 {[%clk 0:01:20.6]} 28.
Bf1 {[%clk 0:01:55.2]} 28... Qe7 {[%clk 0:01:14]} 29. Bd3 {[%clk 0:01:29.1]}
29... Qf6 {[%clk 0:01:12.2]} 30. Qxf6+ {[%clk 0:01:23.3]} 30... Kxf6 {[%clk
0:01:11.9]} 31. c4 {[%clk 0:01:08.4]} 31... Ne7 {[%clk 0:01:05.2]} 32. R1e4
{[%clk 0:00:56.6]} 32... Nf5 {[%clk 0:00:59]} 33. Rf4 {[%clk 0:00:37.7]} 33...
Re7 {[%clk 0:00:41.5]} 34. Bxf5 {[%clk 0:00:37.3]} 34... gxf5 {[%clk 0:00:39]}
35. Ra5 {[%clk 0:00:35.5]} 35... Red7 {[%clk 0:00:28.9]} 36. Rxa4 {[%clk
0:00:35.6]} 36... Rxd4 {[%clk 0:00:29.3]} 37. Rxd4 {[%clk 0:00:35.4]} 37... Rxd4
{[%clk 0:00:30.2]} 38. Ra7 {[%clk 0:00:28]} 38... b5 {[%clk 0:00:20.5]} 39. c5
{[%clk 0:00:22.9]} 39... Rd3 {[%clk 0:00:16.9]} 40. Rc7 {[%clk 0:00:21.8]} 40...
Rxa3 {[%clk 0:00:16.1]} 41. Rxc6 {[%clk 0:00:21.7]} 41... Rb3 {[%clk 0:00:16.2]}
42. Rb6 {[%clk 0:00:21.3]} 42... Rxb4 {[%clk 0:00:16.5]} 43. f4 {[%clk 0:00:19]}
43... Rb2 {[%clk 0:00:12.4]} 44. c6 {[%clk 0:00:18.6]} 44... Rc2 {[%clk
0:00:10.7]} 45. Rxb5 {[%clk 0:00:14.9]} 45... Rxc6 {[%clk 0:00:10.7]} 46. Ra5
{[%clk 0:00:14.7]} 46... Rc2 {[%clk 0:00:10.9]} 47. Rb5 {[%clk 0:00:13.7]} 47...
Ke7 {[%clk 0:00:10.6]} 48. Rb6 {[%clk 0:00:13.8]} 48... Kd7 {[%clk 0:00:10.7]}
49. Rb7+ {[%clk 0:00:13.9]} 49... Kd6 {[%clk 0:00:05.4]} 50. Rxf7 {[%clk
0:00:13.3]} 50... Kd5 {[%clk 0:00:06.1]} 51. Rf6 {[%clk 0:00:13.8]} 51... Ra2
{[%clk 0:00:04.6]} 52. Rh6 {[%clk 0:00:13.1]} 52... Ke4 {[%clk 0:00:05.1]} 53.
Rxe6+ {[%clk 0:00:13.1]} 53... Kf3 {[%clk 0:00:05.5]} 54. Rg6 {[%clk 0:00:10.2]}
54... Ra1+ {[%clk 0:00:05.7]} 55. Kh2 {[%clk 0:00:10.3]} 55... Ra2+ {[%clk
0:00:06.3]} 56. Kg1 {[%clk 0:00:10.5]} 56... Ra1+ {[%clk 0:00:06.8]} 57. Kh2
{[%clk 0:00:10.9]} 57... Ra2+ {[%clk 0:00:07.5]} 58. Kh3 {[%clk 0:00:10.3]}
58... Ra1 {[%clk 0:00:07.3]} 59. Kh2 {[%clk 0:00:09.5]} 1/2-1/2

[Event "*** Titled Tuesday Blitz"]
[Site "Chess.com"]
[Date "2020.05.19"]
[Round "10"]
[White "tsvet2005"]
[Black "Meri-Arabidze"]
[Result "1-0"]
[WhiteElo "2531"]
[BlackElo "2596"]
[TimeControl "180+1"]
[EndTime "13:57:45 PDT"]
[Termination "tsvet2005 won on time"]

1. d4 {[%clk 0:03:00.9]} 1... f5 {[%clk 0:02:59.1]} 2. c4 {[%clk 0:03:01.2]}
2... Nf6 {[%clk 0:02:58.6]} 3. Nf3 {[%clk 0:03:01.8]} 3... e6 {[%clk 0:02:58.9]}
4. g3 {[%clk 0:03:00.5]} 4... c6 {[%clk 0:02:57.6]} 5. Bg2 {[%clk 0:03:00.5]}
5... d5 {[%clk 0:02:58.3]} 6. O-O {[%clk 0:03:00]} 6... Bd6 {[%clk 0:02:58.4]}
7. b3 {[%clk 0:03:00.6]} 7... Qe7 {[%clk 0:02:58.6]} 8. Qc2 {[%clk 0:02:59.9]}
8... O-O {[%clk 0:02:57.8]} 9. Ne5 {[%clk 0:03:00.5]} 9... b6 {[%clk 0:02:53.3]}
10. Nd3 {[%clk 0:02:57.1]} 10... Bb7 {[%clk 0:02:53]} 11. Bf4 {[%clk 0:02:54.7]}
11... Nbd7 {[%clk 0:02:51]} 12. Bxd6 {[%clk 0:02:52.1]} 12... Qxd6 {[%clk
0:02:51.9]} 13. Nd2 {[%clk 0:02:52.6]} 13... Ne4 {[%clk 0:02:51.6]} 14. Nf3
{[%clk 0:02:52.4]} 14... Rac8 {[%clk 0:02:50]} 15. Qb2 {[%clk 0:02:43.6]} 15...
c5 {[%clk 0:02:42.1]} 16. cxd5 {[%clk 0:02:42.9]} 16... exd5 {[%clk 0:02:41.9]}
17. dxc5 {[%clk 0:02:42.9]} 17... bxc5 {[%clk 0:02:42.2]} 18. Rac1 {[%clk
0:02:42.8]} 18... Ba6 {[%clk 0:02:35.8]} 19. Rfd1 {[%clk 0:02:42.5]} 19... Qb6
{[%clk 0:02:27]} 20. Nf4 {[%clk 0:02:30.9]} 20... d4 {[%clk 0:02:09.8]} 21. Rc2
{[%clk 0:02:04.5]} 21... Ndf6 {[%clk 0:02:06.3]} 22. Qa3 {[%clk 0:01:53.5]}
22... Rfe8 {[%clk 0:02:02.6]} 23. e3 {[%clk 0:01:12.6]} 23... g5 {[%clk
0:01:46]} 24. Nd3 {[%clk 0:01:07.6]} 24... Nc3 {[%clk 0:01:38.9]} 25. Rdd2
{[%clk 0:01:05.1]} 25... Nfe4 {[%clk 0:01:36.8]} 26. Nb2 {[%clk 0:00:54.5]}
26... Nxd2 {[%clk 0:01:32.5]} 27. Nxd2 {[%clk 0:00:55.4]} 27... Ne2+ {[%clk
0:00:52.7]} 28. Kh1 {[%clk 0:00:53.5]} 28... d3 {[%clk 0:00:53.1]} 29. Rc4
{[%clk 0:00:50.6]} 29... Bxc4 {[%clk 0:00:43]} 30. Nbxc4 {[%clk 0:00:51.5]}
30... Qf6 {[%clk 0:00:42.7]} 31. Qxa7 {[%clk 0:00:46.2]} 31... f4 {[%clk
0:00:32.8]} 32. Bd5+ {[%clk 0:00:31.9]} 32... Kh8 {[%clk 0:00:31.8]} 33. Ne4
{[%clk 0:00:28.1]} 33... Qa1+ {[%clk 0:00:28]} 34. Kg2 {[%clk 0:00:28]} 34...
Rf8 {[%clk 0:00:20.3]} 35. Nxg5 {[%clk 0:00:24.1]} 35... Qg7 {[%clk 0:00:09.6]}
36. Qxg7+ {[%clk 0:00:21.1]} 36... Kxg7 {[%clk 0:00:09.9]} 37. Ne6+ {[%clk
0:00:22]} 37... Kf6 {[%clk 0:00:09.5]} 38. Nxf8 {[%clk 0:00:19.7]} 38... Rxf8
{[%clk 0:00:10]} 39. gxf4 {[%clk 0:00:20.2]} 39... Nc3 {[%clk 0:00:07.8]} 40.
Bf3 {[%clk 0:00:19.1]} 40... Rd8 {[%clk 0:00:06.5]} 41. Nd2 {[%clk 0:00:17.3]}
41... Nxa2 {[%clk 0:00:06.6]} 42. e4 {[%clk 0:00:16.9]} 42... Nc3 {[%clk
0:00:05.1]} 43. Bg4 {[%clk 0:00:16.2]} 43... Ke7 {[%clk 0:00:02.8]} 44. Kf3
{[%clk 0:00:16.4]} 44... Ra8 {[%clk 0:00:02.2]} 45. Ke3 {[%clk 0:00:16.1]} 45...
Rd8 {[%clk 0:00:02.3]} 46. h4 {[%clk 0:00:12.6]} 46... h6 {[%clk 0:00:01.8]} 47.
h5 {[%clk 0:00:12.5]} 47... Na2 {[%clk 0:00:02.7]} 48. Nc4 {[%clk 0:00:12]}
48... Nb4 {[%clk 0:00:03]} 49. f5 {[%clk 0:00:11.4]} 49... Nc2+ {[%clk
0:00:03.3]} 50. Kd2 {[%clk 0:00:11.8]} 50... Nd4 {[%clk 0:00:03.7]} 51. Na5
{[%clk 0:00:12]} 51... Nb5 {[%clk 0:00:02.8]} 52. Nc6+ {[%clk 0:00:11.8]} 52...
Kf6 {[%clk 0:00:02.2]} 53. Nxd8 {[%clk 0:00:12.7]} 53... Nd4 {[%clk 0:00:02.1]}
54. Kxd3 {[%clk 0:00:11.9]} 1-0

[Event "*** Titled Tuesday Blitz"]
[Site "Chess.com"]
[Date "2020.05.19"]
[Round "10"]
[White "Ranindu2003"]
[Black "joksijoksi"]
[Result "1-0"]
[WhiteElo "2457"]
[BlackElo "2334"]
[TimeControl "180+1"]
[EndTime "13:57:50 PDT"]
[Termination "Ranindu2003 won by resignation"]

1. e4 {[%clk 0:03:00.6]} 1... e6 {[%clk 0:03:00.4]} 2. d4 {[%clk 0:03:00]} 2...
d5 {[%clk 0:03:01.3]} 3. Nd2 {[%clk 0:03:00.1]} 3... Nf6 {[%clk 0:03:01.5]} 4.
e5 {[%clk 0:03:00.2]} 4... Nfd7 {[%clk 0:03:02.1]} 5. Bd3 {[%clk 0:03:00.9]}
5... c5 {[%clk 0:03:02.6]} 6. c3 {[%clk 0:03:01.6]} 6... Nc6 {[%clk 0:03:03.2]}
7. Ngf3 {[%clk 0:03:02.2]} 7... h5 {[%clk 0:03:02.2]} 8. O-O {[%clk 0:02:45.8]}
8... g5 {[%clk 0:03:01.7]} 9. dxc5 {[%clk 0:02:40.6]} 9... Ndxe5 {[%clk
0:03:01.1]} 10. Bb5 {[%clk 0:02:30.8]} 10... Bd7 {[%clk 0:02:51.6]} 11. Bxc6
{[%clk 0:02:05.5]} 11... Nxc6 {[%clk 0:02:51]} 12. Nb3 {[%clk 0:02:05.7]} 12...
g4 {[%clk 0:02:46.3]} 13. Nfd4 {[%clk 0:02:05.3]} 13... Bg7 {[%clk 0:02:40.4]}
14. f3 {[%clk 0:01:49.2]} 14... e5 {[%clk 0:02:35.2]} 15. Nb5 {[%clk 0:01:48.8]}
15... O-O {[%clk 0:02:26.8]} 16. Qxd5 {[%clk 0:01:32.6]} 16... Ne7 {[%clk
0:02:03.8]} 17. Qd3 {[%clk 0:01:29.8]} 17... Bxb5 {[%clk 0:01:48]} 18. Qxb5
{[%clk 0:01:30.7]} 18... a6 {[%clk 0:01:27.5]} 19. Qe2 {[%clk 0:01:28.9]} 19...
f5 {[%clk 0:01:25.2]} 20. Bg5 {[%clk 0:01:25.1]} 20... Qc7 {[%clk 0:01:05.2]}
21. fxg4 {[%clk 0:01:06.8]} 21... hxg4 {[%clk 0:01:00.4]} 22. Rad1 {[%clk
0:01:02]} 22... Rae8 {[%clk 0:00:27.2]} 23. Qc4+ {[%clk 0:00:44.5]} 23... Kh7
{[%clk 0:00:27.1]} 24. Rd2 {[%clk 0:00:38.2]} 24... Nc6 {[%clk 0:00:22.3]} 25.
Rfd1 {[%clk 0:00:34.9]} 25... f4 {[%clk 0:00:14.7]} 26. Rd7 {[%clk 0:00:32]}
26... Qc8 {[%clk 0:00:11.8]} 27. Qe4+ {[%clk 0:00:31.7]} 27... Kg8 {[%clk
0:00:11.3]} 28. Qg6 {[%clk 0:00:27.9]} 28... Ne7 {[%clk 0:00:08.8]} 29. Bxe7
{[%clk 0:00:23.4]} 29... Rf7 {[%clk 0:00:08.6]} 30. Rd8 {[%clk 0:00:19.1]} 30...
Rxe7 {[%clk 0:00:07.7]} 31. Rxc8 {[%clk 0:00:19.1]} 31... Rxc8 {[%clk
0:00:08.6]} 32. Qxg4 {[%clk 0:00:19.4]} 32... Rce8 {[%clk 0:00:07.1]} 33. Rd7
{[%clk 0:00:18.6]} 33... e4 {[%clk 0:00:05.3]} 34. Rxe7 {[%clk 0:00:18.3]} 34...
Rxe7 {[%clk 0:00:06.2]} 35. Qxf4 {[%clk 0:00:17.6]} 35... e3 {[%clk 0:00:05.7]}
36. Nc1 {[%clk 0:00:12.7]} 36... Be5 {[%clk 0:00:03.5]} 37. Qg4+ {[%clk
0:00:11.8]} 37... Kf8 {[%clk 0:00:03.7]} 38. Qf3+ {[%clk 0:00:11.8]} 38... Ke8
{[%clk 0:00:03.6]} 39. Qe2 {[%clk 0:00:12.3]} 39... Bf6 {[%clk 0:00:02.8]} 40.
g3 {[%clk 0:00:12.7]} 40... Bg5 {[%clk 0:00:02.8]} 41. Nd3 {[%clk 0:00:12.9]}
41... Kd8 {[%clk 0:00:02.8]} 42. Nf4 {[%clk 0:00:13.2]} 42... Rd7 {[%clk
0:00:02.8]} 43. Ne6+ {[%clk 0:00:12.6]} 43... Kc8 {[%clk 0:00:02.1]} 44. Nxg5
{[%clk 0:00:13.1]} 44... Rd2 {[%clk 0:00:01.8]} 45. Qxe3 {[%clk 0:00:13.2]}
45... Rxb2 {[%clk 0:00:02.7]} 46. Qe8+ {[%clk 0:00:13.1]} 46... Kc7 {[%clk
0:00:03.2]} 47. Qe7+ {[%clk 0:00:13.7]} 47... Kc6 {[%clk 0:00:03.6]} 48. Qd6+
{[%clk 0:00:14.2]} 48... Kb5 {[%clk 0:00:04]} 49. Qb6+ {[%clk 0:00:14.8]} 49...
Kc4 {[%clk 0:00:04.9]} 50. Qxb2 {[%clk 0:00:14.5]} 50... b5 {[%clk 0:00:05.4]}
51. Qb4+ {[%clk 0:00:14.3]} 51... Kd5 {[%clk 0:00:05.3]} 52. Qd4+ {[%clk
0:00:14.5]} 52... Kc6 {[%clk 0:00:05.3]} 53. Qd6+ {[%clk 0:00:15.1]} 53... Kb7
{[%clk 0:00:06]} 54. Qb6+ {[%clk 0:00:15.3]} 54... Kc8 {[%clk 0:00:06.8]} 55. c6
{[%clk 0:00:15.6]} 1-0

[Event "*** Titled Tuesday Blitz"]
[Site "Chess.com"]
[Date "2020.05.19"]
[Round "10"]
[White "DDTerziev04"]
[Black "Margarita2907"]
[Result "1-0"]
[WhiteElo "2258"]
[BlackElo "2044"]
[TimeControl "180+1"]
[EndTime "13:57:51 PDT"]
[Termination "DDTerziev04 won on time"]

1. e4 {[%clk 0:03:00.9]} 1... c5 {[%clk 0:02:59.3]} 2. Nf3 {[%clk 0:03:00.6]}
2... d6 {[%clk 0:02:59.7]} 3. d4 {[%clk 0:03:01]} 3... cxd4 {[%clk 0:03:00.2]}
4. Qxd4 {[%clk 0:03:01.7]} 4... Nf6 {[%clk 0:02:58.9]} 5. Be2 {[%clk 0:02:59.5]}
5... Nc6 {[%clk 0:02:58.4]} 6. Qe3 {[%clk 0:02:59.6]} 6... g6 {[%clk 0:02:57.7]}
7. h3 {[%clk 0:02:57.2]} 7... Bg7 {[%clk 0:02:57.8]} 8. O-O {[%clk 0:02:57.1]}
8... O-O {[%clk 0:02:57.9]} 9. Rd1 {[%clk 0:02:56.9]} 9... Qc7 {[%clk 0:02:57]}
10. c4 {[%clk 0:02:56.8]} 10... b6 {[%clk 0:02:56.1]} 11. Nc3 {[%clk 0:02:56]}
11... Bb7 {[%clk 0:02:56.5]} 12. Rb1 {[%clk 0:02:55]} 12... a6 {[%clk
0:02:56.1]} 13. b3 {[%clk 0:02:54.7]} 13... Nd7 {[%clk 0:02:51.4]} 14. Bb2
{[%clk 0:02:53.4]} 14... e6 {[%clk 0:02:46.4]} 15. Rd2 {[%clk 0:02:51.8]} 15...
Rfd8 {[%clk 0:02:25.8]} 16. Rbd1 {[%clk 0:02:48.5]} 16... Nf6 {[%clk 0:02:25]}
17. Na4 {[%clk 0:02:44.6]} 17... Ne7 {[%clk 0:02:11.4]} 18. Bxf6 {[%clk
0:02:39.4]} 18... Bxf6 {[%clk 0:02:09.2]} 19. Nxb6 {[%clk 0:02:39.5]} 19... Rab8
{[%clk 0:02:08.4]} 20. Na4 {[%clk 0:02:38.5]} 20... d5 {[%clk 0:02:04]} 21. e5
{[%clk 0:02:28.8]} 21... Bg7 {[%clk 0:02:03]} 22. c5 {[%clk 0:02:27.9]} 22...
Nf5 {[%clk 0:01:58.4]} 23. Qc3 {[%clk 0:02:16.1]} 23... d4 {[%clk 0:01:45.3]}
24. Qc4 {[%clk 0:02:09.7]} 24... Bxf3 {[%clk 0:01:41.6]} 25. Bxf3 {[%clk
0:02:10.6]} 25... Bxe5 {[%clk 0:01:40.8]} 26. Nb2 {[%clk 0:01:54.1]} 26... a5
{[%clk 0:01:31.4]} 27. Nd3 {[%clk 0:01:52.5]} 27... Bg7 {[%clk 0:01:31.2]} 28.
Re2 {[%clk 0:01:36.6]} 28... Nh4 {[%clk 0:01:25]} 29. Be4 {[%clk 0:01:28.4]}
29... Qe7 {[%clk 0:01:07.3]} 30. g3 {[%clk 0:01:25.7]} 30... Nf5 {[%clk
0:01:04.2]} 31. Bxf5 {[%clk 0:01:26]} 31... gxf5 {[%clk 0:01:03.6]} 32. Rde1
{[%clk 0:01:26.5]} 32... Qg5 {[%clk 0:00:58.4]} 33. Kg2 {[%clk 0:01:23.2]} 33...
Re8 {[%clk 0:00:46.7]} 34. f4 {[%clk 0:01:20.4]} 34... Qd8 {[%clk 0:00:44.3]}
35. a3 {[%clk 0:01:00.5]} 35... Qc7 {[%clk 0:00:41.6]} 36. b4 {[%clk 0:00:59.9]}
36... axb4 {[%clk 0:00:40.6]} 37. axb4 {[%clk 0:01:00.8]} 37... Qc6+ {[%clk
0:00:39.4]} 38. Kf2 {[%clk 0:00:57.2]} 38... Rec8 {[%clk 0:00:24.9]} 39. Ra1
{[%clk 0:00:46.1]} 39... Ra8 {[%clk 0:00:24.4]} 40. b5 {[%clk 0:00:41.3]} 40...
Qb7 {[%clk 0:00:21.1]} 41. c6 {[%clk 0:00:33.2]} 41... Qb6 {[%clk 0:00:21.1]}
42. Rb1 {[%clk 0:00:31.6]} 42... Ra3 {[%clk 0:00:20]} 43. Ra2 {[%clk 0:00:23.7]}
43... Rc3 {[%clk 0:00:19.6]} 44. Ra6 {[%clk 0:00:14]} 44... Qxa6 {[%clk
0:00:17.9]} 45. Qxc3 {[%clk 0:00:12.5]} 45... dxc3 {[%clk 0:00:17.5]} 46. bxa6
{[%clk 0:00:12.2]} 46... c2 {[%clk 0:00:17.1]} 47. Rb7 {[%clk 0:00:05.4]} 47...
Rxc6 {[%clk 0:00:13.7]} 48. Rb8+ {[%clk 0:00:04.6]} 48... Bf8 {[%clk 0:00:12.9]}
49. a7 {[%clk 0:00:04.9]} 49... Ra6 {[%clk 0:00:04.2]} 50. a8=Q {[%clk
0:00:04.2]} 50... Rxa8 {[%clk 0:00:02.5]} 51. Rxa8 {[%clk 0:00:05.1]} 1-0